bitfinex/quotes_BTCUSD_20240719
["timestamp","ask_amount","ask_price","bid_price","bid_amount"]
[1721403352134,0.29768174,65518.0,65511.0,0.001]
[1721403352344,0.152643,65512.0,65511.0,0.001]
[1721403352543,0.15438174,65512.0,65496.0,0.07717479]
[1721403352779,0.15438174,65511.0,65496.0,0.23264779]
[1721403352986,0.15438174,65511.0,65503.0,0.08265924]
[1721403353202,0.1433,65518.0,65503.0,0.08265924]
[1721403353407,0.5,65516.0,65503.0,0.08265924]
[1721403353613,0.02102426,65515.0,65503.0,0.08265924]
[1721403353828,0.02102426,65514.0,65503.0,0.00548445]
[1721403354036,0.175406,65513.0,65503.0,0.00548445]
[1721403354241,0.02102426,65512.0,65496.0,0.23264879]
[1721403354451,0.15438174,65512.0,65503.0,0.07717479]
[1721403354654,0.15438174,65512.0,65503.0,0.08262755]
[1721403355056,0.5,65516.0,65503.0,0.08262755]
[1721403355265,0.17504743,65515.0,65511.0,0.001]
[1721403355472,0.03701477,65514.0,65511.0,0.001]
[1721403355676,0.03701477,65514.0,65503.0,0.07717479]
[1721403355677,0.02066569,65513.0,65503.0,0.22983779]
[1721403355880,0.1433,65518.0,65503.0,0.22983779]
[1721403355881,0.1433,65518.0,65505.0,0.152658]
[1721403356081,0.03741426,65517.0,65504.0,0.06645085]
[1721403356294,0.15889274,65518.0,65511.0,0.07717479]
[1721403356295,0.1433,65518.0,65511.0,0.07717479]
[1721403356503,0.0828,65518.0,65511.0,0.07717479]
[1721403356710,0.0828,65518.0,65512.0,0.00543553]
[1721403357762,0.01262735,65519.0,65512.0,0.00543553]
[1721403358172,0.1442,65524.0,65512.0,0.00543553]
[1721403358173,0.09077552,65524.0,65512.0,0.00543553]
[1721403358387,0.01227552,65524.0,65518.0,0.07717479]
[1721403358605,0.01561168,65535.0,65522.0,0.15262]
[1721403358811,0.19510709,65534.0,65524.0,0.002794]
[1721403359017,0.04072612,65533.0,65523.0,0.00541042]
[1721403359272,0.15438174,65534.0,65525.0,0.0054066]
[1721403359273,0.02433867,65532.0,65525.0,0.0054066]
[1721403359505,0.15438174,65534.0,65526.0,0.002794]
[1721403359743,0.15438174,65534.0,65519.0,0.367453]
[1721403359744,0.5,65532.0,65520.0,0.002794]
[1721403359951,0.17838209,65531.0,65520.0,0.002794]
[1721403360167,0.02400035,65530.0,65521.0,0.00541425]
[1721403360373,0.23288174,65529.0,65521.0,0.00541425]
[1721403360598,0.05291854,65528.0,65518.0,0.002794]
[1721403360804,0.23288174,65529.0,65518.0,0.002794]
[1721403360805,0.19397685,65527.0,65522.0,0.00541097]
[1721403361008,0.02400035,65526.0,65524.0,0.001]
[1721403361211,0.15438174,65525.0,65524.0,0.001]
[1721403361435,0.15438174,65525.0,65520.0,0.01]
[1721403361649,0.15438174,65525.0,65524.0,0.00540842]
[1721403361850,0.15438174,65525.0,65521.0,0.001]
[1721403362059,0.15438174,65525.0,65524.0,0.00540894]
[1721403362274,0.01622031,65525.0,65520.0,0.01]
[1721403362494,0.0785,65529.0,65521.0,0.002794]
[1721403362729,0.01596305,65530.0,65529.0,0.457812]
[1721403363142,0.01596305,65530.0,65529.0,0.46320659]
[1721403363557,0.01596305,65530.0,65529.0,0.76841459]
[1721403364216,0.02084903,65536.0,65535.0,0.15259]
[1721403364443,0.02084903,65536.0,65534.0,0.002794]
[1721403364653,0.02084903,65536.0,65535.0,0.00538065]
[1721403364856,0.00835,65536.0,65535.0,1.51373697]
[1721403365082,0.00835,65536.0,65535.0,1.44936718]
[1721403366156,0.00835,65536.0,65535.0,1.43436718]
[1721403366364,0.00835,65536.0,65535.0,0.91235928]
[1721403367239,0.00835,65536.0,65535.0,0.91835928]
[1721403367415,0.00835,65536.0,65535.0,1.0078484]
[1721403367846,0.00835,65536.0,65535.0,1.0018484]
[1721403368185,0.00835,65536.0,65535.0,1.0078484]
[1721403368780,0.00835,65536.0,65535.0,1.46741014]
[1721403368993,0.00835,65536.0,65535.0,1.56741014]
[1721403369800,0.00835,65536.0,65535.0,1.92259014]
[1721403370001,0.00835,65536.0,65535.0,1.99376493]
[1721403370215,0.00835,65536.0,65535.0,1.99976493]
[1721403370673,0.00835,65536.0,65535.0,1.99376493]
[1721403370987,0.00835,65536.0,65535.0,1.70258493]
[1721403371436,0.00835,65536.0,65535.0,2.06676493]
[1721403371636,0.00835,65536.0,65535.0,2.08076493]
[1721403372049,0.00835,65536.0,65535.0,2.37666493]
[1721403372253,0.00835,65536.0,65535.0,2.09476493]
[1721403372450,0.00835,65536.0,65535.0,2.08076493]
[1721403372907,0.002,65549.0,65543.0,1.619443]
[1721403373200,0.002,65549.0,65543.0,1.87382474]
[1721403373407,0.01227952,65561.0,65558.0,1.067755]
[1721403373624,0.01227952,65561.0,65558.0,1.52703674]
[1721403373836,0.01227952,65561.0,65558.0,2.04775745]
[1721403374037,0.01227952,65561.0,65558.0,2.17695745]
[1721403374263,0.46304871,65593.0,65581.0,0.05]
[1721403374471,0.46304871,65593.0,65575.0,0.365594]
[1721403374472,0.46304871,65593.0,65592.0,0.05]
[1721403374608,0.01228,65592.0,65591.0,0.05]
[1721403374820,0.01228,65592.0,65586.0,0.05]
[1721403375016,0.01230429,65597.0,65591.0,0.00497849]
[1721403375221,0.16666174,65596.0,65586.0,0.002794]
[1721403375423,0.5,65588.0,65582.0,0.002794]
[1721403375631,0.15438174,65587.0,65576.0,0.002794]
[1721403375835,0.15438174,65587.0,65577.0,0.04729382]
[1721403376034,0.15438174,65587.0,65578.0,0.002794]
[1721403376507,0.15438174,65587.0,65575.0,0.47014416]
[1721403376508,0.123,65586.0,65575.0,0.47014416]
[1721403376689,0.15438174,65585.0,65576.0,0.002794]
[1721403377089,0.15438174,65585.0,65575.0,0.47014416]
[1721403377312,0.1205,65584.0,65575.0,0.47014416]
[1721403377511,0.1205,65584.0,65576.0,0.002794]
[1721403377512,0.15438174,65583.0,65576.0,0.002794]
[1721403377904,0.15438174,65583.0,65575.0,0.47014416]
[1721403378359,0.15438174,65583.0,65576.0,0.002794]
[1721403378762,0.15438174,65583.0,65576.0,0.003794]
[1721403378966,0.30686074,65583.0,65575.0,0.47014416]
[1721403379167,0.15438174,65583.0,65577.0,0.001]
[1721403379604,0.5,65581.0,65577.0,0.001]
[1721403379813,0.15438174,65580.0,65577.0,0.001]
[1721403380013,0.30686774,65580.0,65577.0,0.001]
[1721403380183,0.45935274,65580.0,65577.0,0.001]
[1721403380397,0.45935274,65580.0,65566.0,0.002794]
[1721403380398,0.152506,65571.0,65566.0,0.002794]
[1721403380549,0.152506,65571.0,65550.0,0.0609]
[1721403380550,0.15438174,65570.0,65563.0,0.002794]
[1721403380751,0.15438174,65570.0,65553.0,0.05]
[1721403380752,0.152512,65569.0,65553.0,0.05]
[1721403381053,0.152512,65569.0,65551.0,0.47014416]
[1721403381054,0.1211,65558.0,65551.0,0.47014416]
[1721403381277,0.1211,65558.0,65544.0,0.21524957]
[1721403381479,0.1211,65558.0,65547.0,0.05]
[1721403381679,0.15438174,65557.0,65544.0,0.13807479]
[1721403382299,0.15438174,65557.0,65547.0,0.05]
[1721403382701,0.15438174,65557.0,65547.0,0.001]
[1721403382874,0.1211,65558.0,65547.0,0.001]
[1721403383067,0.15438174,65557.0,65547.0,0.001]
[1721403383274,0.30692174,65557.0,65547.0,0.001]
[1721403383487,0.5,65553.0,65547.0,0.001]
[1721403383684,0.15438174,65552.0,65547.0,0.001]
[1721403383891,0.15438174,65552.0,65533.0,0.47014416]
[1721403383892,0.0411,65547.0,65533.0,0.47014416]
[1721403384111,0.152577,65541.0,65528.0,0.066]
[1721403384332,0.65438174,65546.0,65526.0,1.26254416]
[1721403384333,0.152586,65537.0,65534.0,0.01343121]
[1721403384536,0.15438174,65536.0,65526.0,0.47014416]
[1721403384747,0.15438174,65536.0,65527.0,0.05]
[1721403384952,0.15438174,65536.0,65529.0,0.05]
[1721403385162,0.15438174,65536.0,65533.0,0.001]
[1721403385163,0.14938174,65536.0,65533.0,0.001]
[1721403385590,0.65257,65544.0,65533.0,0.001]
[1721403385792,0.65257,65544.0,65531.0,0.05]
[1721403385793,0.014,65536.0,65531.0,0.05]
[1721403386000,0.016,65536.0,65532.0,0.01344397]
[1721403386624,0.016,65536.0,65527.0,0.001]
[1721403386625,0.15438174,65535.0,65527.0,0.001]
[1721403386839,0.15438174,65535.0,65533.0,0.01343759]
[1721403387045,0.15438174,65535.0,65527.0,0.001]
[1721403387046,0.152599,65532.0,65527.0,0.001]
[1721403387244,0.30698074,65532.0,65520.0,0.01]
[1721403387452,0.15438174,65532.0,65528.0,0.01346948]
[1721403387657,0.15438174,65532.0,65521.0,0.05]
[1721403387863,0.0772,65534.0,65529.0,0.0134631]
[1721403388065,0.15438174,65533.0,65527.0,0.05]
[1721403388278,0.0802,65541.0,65526.0,0.07717479]
[1721403388491,0.012,65532.0,65531.0,0.05]
[1721403388960,0.013,65536.0,65531.0,0.06345034]
[1721403389162,0.013,65536.0,65532.0,0.05]
[1721403389402,0.014,65533.0,65531.0,0.01345034]
[1721403389788,0.014,65533.0,65532.0,0.1949]
[1721403389978,0.014,65533.0,65532.0,0.20834397]
[1721403390431,0.014,65533.0,65532.0,0.01344397]
[1721403390631,0.014,65533.0,65532.0,0.02344397]
[1721403390865,0.16838174,65541.0,65532.0,0.01]
[1721403391150,0.007,65536.0,65532.0,0.02317074]
[1721403391360,0.007,65536.0,65532.0,0.01]
[1721403391765,0.007,65536.0,65533.0,0.01316437]
[1721403392127,0.007,65536.0,65535.0,0.05]
[1721403392532,0.019,65536.0,65535.0,0.01315161]
[1721403392734,0.019,65536.0,65535.0,0.01165119]
[1721403393165,0.019,65536.0,65532.0,0.01]
[1721403393340,0.012,65536.0,65535.0,0.01290154]
[1721403393541,0.012,65536.0,65532.0,0.01]
[1721403393969,0.15438174,65541.0,65533.0,0.0129143]
[1721403394196,0.15438174,65540.0,65533.0,0.0129143]
[1721403394416,0.004,65533.0,65532.0,0.01]
[1721403394619,0.15438174,65533.0,65532.0,0.01]
[1721403394842,0.15438174,65533.0,65522.0,0.05]
[1721403395044,0.15438174,65532.0,65522.0,0.05]
[1721403395245,0.15438174,65532.0,65520.0,0.01]
[1721403395246,0.15438174,65532.0,65521.0,0.05]
[1721403395451,0.15438174,65532.0,65520.0,0.01]
[1721403396197,0.15438174,65532.0,65522.0,0.05]
[1721403396396,0.15438174,65532.0,65523.0,0.05]
[1721403396597,0.15438174,65532.0,65520.0,0.01]
[1721403397099,0.01240274,65544.0,65533.0,0.05]
[1721403397300,0.0808,65546.0,65536.0,0.07717479]
[1721403397504,0.23518174,65546.0,65537.0,0.05]
[1721403397708,0.15438174,65546.0,65539.0,0.05]
[1721403397934,0.15438174,65546.0,65536.0,0.07717479]
[1721403398171,0.15438174,65546.0,65536.0,0.12717479]
[1721403398358,0.15438174,65546.0,65533.0,0.05]
[1721403398565,0.5,65547.0,65534.0,0.002794]
[1721403398566,0.152579,65540.0,65534.0,0.002794]
[1721403398784,0.30696274,65539.0,65530.0,0.002794]
[1721403398954,0.004,65532.0,65530.0,0.002794]
[1721403399157,0.004,65532.0,65523.0,0.05]
[1721403399158,0.15438174,65531.0,65523.0,0.05]
[1721403399360,0.15438174,65531.0,65520.0,0.011]
[1721403399715,0.15438174,65531.0,65525.0,0.05]
[1721403400425,0.15438174,65531.0,65526.0,0.01289355]
[1721403400626,0.01723817,65530.0,65526.0,0.01289355]
[1721403400827,0.01723817,65530.0,65520.0,0.01]
[1721403400970,0.01723817,65530.0,65527.0,0.01288717]
[1721403401377,0.01723817,65530.0,65523.0,0.05]
[1721403401576,0.24708174,65531.0,65528.0,0.0128808]
[1721403401881,0.24708174,65531.0,65526.0,0.001]
[1721403401882,0.26108174,65531.0,65526.0,0.001]
[1721403402096,0.012,65530.0,65522.0,0.05]
[1721403402305,0.012,65530.0,65527.0,0.01288717]
[1721403402505,0.014,65530.0,65527.0,0.001]
[1721403402703,0.014,65530.0,65528.0,0.0128808]
[1721403403830,0.012,65530.0,65528.0,0.0128808]
[1721403404214,0.18038174,65530.0,65528.0,0.0128808]
[1721403404424,0.21041991,65530.0,65527.0,0.01]
[1721403404625,0.21041991,65530.0,65528.0,0.01292925]
[1721403404626,0.19641991,65530.0,65528.0,0.01292925]
[1721403404825,0.19641991,65530.0,65527.0,0.01]
[1721403405072,0.19641991,65530.0,65528.0,0.001]
[1721403405073,0.19238174,65530.0,65528.0,0.001]
[1721403405280,0.038,65530.0,65529.0,0.12717479]
[1721403405480,0.038,65530.0,65529.0,0.28019766]
[1721403405694,0.024,65530.0,65529.0,0.28019766]
[1721403405885,0.012,65530.0,65529.0,0.28019766]
[1721403406664,0.0123366,65531.0,65530.0,0.05]
[1721403406875,0.152581,65539.0,65529.0,0.07662287]
[1721403407084,0.014,65530.0,65527.0,0.011]
[1721403407683,0.0411,65536.0,65528.0,0.07717479]
[1721403407940,0.012,65530.0,65528.0,0.07717479]
[1721403408328,0.012,65530.0,65527.0,0.01]
[1721403408563,0.012,65530.0,65529.0,0.07717479]
[1721403408729,0.026,65530.0,65529.0,0.07717479]
[1721403408902,0.16838174,65530.0,65527.0,0.011]
[1721403409109,0.457819,65528.0,65527.0,0.011]
[1721403409339,0.457819,65528.0,65522.0,1.0]
[1721403409340,0.15261,65527.0,65522.0,1.0]
[1721403409559,0.15438174,65526.0,65522.0,1.0]
[1721403410451,0.01575344,65525.0,65522.0,1.0]
[1721403410689,0.15438174,65524.0,65522.0,1.0]
[1721403411143,0.15438174,65524.0,65523.0,0.07717479]
[1721403411909,0.17013273,65524.0,65523.0,0.07717479]
[1721403412116,0.2008709,65524.0,65522.0,1.001]
[1721403412320,0.0157515,65523.0,65522.0,1.001]
[1721403412522,0.17013324,65523.0,65522.0,1.0]
[1721403412734,0.51223265,65530.0,65522.0,1.0]
[1721403412946,0.008,65524.0,65523.0,0.003794]
[1721403413151,0.008,65524.0,65523.0,0.001]
[1721403414060,0.01957191,65524.0,65523.0,0.001]
[1721403414210,0.03532416,65524.0,65523.0,0.01397742]
[1721403414410,0.02375225,65524.0,65523.0,0.01397742]
[1721403414611,0.02875225,65524.0,65523.0,0.01397742]
[1721403414810,0.20171811,65524.0,65523.0,0.01297742]
[1721403414989,0.18213399,65524.0,65523.0,0.01297742]
[1721403415396,0.18213399,65524.0,65523.0,0.09015221]
[1721403415397,0.16638174,65524.0,65523.0,0.09015221]
[1721403415597,0.1821329,65524.0,65523.0,0.09015221]
[1721403415848,0.16638174,65524.0,65523.0,0.09015221]
[1721403416053,0.18301991,65524.0,65523.0,0.09015221]
[1721403416264,0.19301991,65524.0,65523.0,0.09115221]
[1721403416629,0.17638174,65524.0,65523.0,0.09115221]
[1721403417688,0.17638174,65524.0,65523.0,0.14115221]
[1721403417689,0.022,65524.0,65523.0,0.14115221]
[1721403417895,0.022,65524.0,65523.0,0.22354621]
[1721403418114,0.022,65524.0,65523.0,0.28814621]
[1721403419546,0.022,65524.0,65523.0,0.74600021]
[1721403419967,0.022,65524.0,65523.0,0.74320621]
[1721403420191,0.022,65524.0,65523.0,0.74600021]
[1721403420474,0.022,65524.0,65523.0,0.28626521]
[1721403420816,0.022,65524.0,65523.0,0.28905921]
[1721403421014,0.022,65524.0,65523.0,0.28626521]
[1721403421229,0.022,65524.0,65523.0,0.28797709]
[1721403421429,0.022,65524.0,65523.0,0.74888328]
[1721403421637,0.022,65524.0,65523.0,1.50752266]
[1721403421832,0.022,65524.0,65523.0,1.51031666]
[1721403422121,0.02181635,65524.0,65523.0,2.19665146]
[1721403422294,0.02181635,65524.0,65523.0,1.14793709]
[1721403422511,0.01181635,65524.0,65523.0,0.28418309]
[1721403422829,0.01223265,65530.0,65528.0,0.05]
[1721403423034,0.01223265,65530.0,65529.0,0.002794]
[1721403423239,0.00083,65532.0,65529.0,0.01554239]
[1721403423465,0.00083,65532.0,65529.0,0.01274839]
[1721403423673,0.17012049,65531.0,65529.0,0.01274839]
[1721403423876,0.02712699,65530.0,65523.0,0.001913]
[1721403424048,0.01455784,65532.0,65523.0,0.001913]
[1721403424049,0.0766,65525.0,65523.0,0.001913]
[1721403424249,0.0766,65525.0,65523.0,0.000913]
[1721403424250,0.3468908,65524.0,65523.0,0.000913]
[1721403424455,0.3468908,65524.0,65522.0,0.949893]
[1721403424456,0.457854,65523.0,65522.0,0.949893]
[1721403424666,0.7623823,65523.0,65522.0,0.949893]
[1721403424833,0.79955505,65523.0,65522.0,0.949893]
[1721403425249,0.84487701,65523.0,65522.0,0.949893]
[1721403426277,0.84487701,65523.0,65522.0,0.950893]
[1721403426278,0.81355519,65523.0,65522.0,0.950893]
[1721403426693,0.82755519,65523.0,65522.0,0.950893]
[1721403427139,0.89548132,65523.0,65522.0,0.950893]
[1721403427323,1.13279119,65523.0,65522.0,0.950893]
[1721403427527,0.91812294,65523.0,65522.0,0.950893]
[1721403427678,0.23493432,65523.0,65522.0,0.950893]
[1721403427880,0.18238174,65523.0,65522.0,0.950893]
[1721403428709,0.19811562,65523.0,65522.0,0.950893]
[1721403428914,0.19811562,65523.0,65522.0,0.96162448]
[1721403429337,0.19811562,65523.0,65522.0,1.01162448]
[1721403429338,0.028,65523.0,65522.0,1.01162448]
[1721403429568,0.028,65523.0,65522.0,1.61228448]
[1721403429919,0.028,65523.0,65522.0,2.22276448]
[1721403430309,0.028,65523.0,65522.0,1.91752448]
[1721403430437,0.014,65523.0,65522.0,1.91752448]
[1721403430853,0.014,65523.0,65522.0,1.91652448]
[1721403431093,0.01374832,65525.0,65524.0,0.507846]
[1721403431293,0.00083,65532.0,65526.0,0.152608]
[1721403431496,0.00083,65532.0,65531.0,0.12717479]
[1721403431856,0.00083,65532.0,65531.0,0.13784887]
[1721403432600,0.01464215,65532.0,65531.0,0.19854887]
[1721403432793,0.00083,65532.0,65531.0,0.19854887]
[1721403433247,0.00083,65532.0,65531.0,0.08784887]
[1721403433248,0.01083,65532.0,65531.0,0.08784887]
[1721403433467,0.16521174,65532.0,65531.0,0.01067408]
[1721403433676,0.18173291,65532.0,65531.0,0.01067408]
[1721403433883,0.18473291,65532.0,65531.0,0.05]
[1721403434095,0.17473291,65532.0,65531.0,0.01067408]
[1721403434753,0.17473291,65532.0,65529.0,0.05]
[1721403434935,0.17473291,65532.0,65531.0,0.05]
[1721403435141,0.17473291,65532.0,65530.0,0.06068045]
[1721403435348,0.15821174,65532.0,65531.0,0.05]
[1721403435567,0.16721174,65532.0,65531.0,0.06067408]
[1721403435999,0.16421174,65532.0,65531.0,0.06067408]
[1721403436202,0.16421174,65532.0,65531.0,0.06167408]
[1721403436203,0.18321174,65532.0,65531.0,0.06167408]
[1721403436625,0.18321174,65532.0,65531.0,0.051]
[1721403437045,0.17321174,65532.0,65531.0,0.05]
[1721403437266,0.2323519,65532.0,65531.0,0.05]
[1721403437472,0.2323519,65532.0,65531.0,0.06067408]
[1721403437684,0.18694771,65532.0,65531.0,0.05]
[1721403437895,0.19794771,65532.0,65531.0,0.051]
[1721403438098,0.02983,65532.0,65531.0,0.051]
[1721403438456,0.02983,65532.0,65531.0,0.01167408]
[1721403438668,0.02983,65532.0,65531.0,0.06167408]
[1721403439096,0.07526596,65532.0,65531.0,0.06167408]
[1721403439453,0.02983,65532.0,65531.0,0.06167408]
[1721403439649,0.02983,65532.0,65531.0,0.01167408]
[1721403439900,0.08916714,65532.0,65531.0,0.06167408]
[1721403440255,0.04373118,65532.0,65531.0,0.06167408]
[1721403440431,0.08914446,65532.0,65531.0,0.01167408]
[1721403440858,0.04373118,65532.0,65531.0,0.06167408]
[1721403441714,0.04373118,65532.0,65531.0,0.20297408]
[1721403441933,0.02983,65532.0,65531.0,0.96597108]
[1721403442531,0.02983,65532.0,65531.0,0.66077208]
[1721403442953,0.02083,65532.0,65531.0,0.66077208]
[1721403443166,0.01183,65532.0,65531.0,0.96597108]
[1721403443368,0.01183,65532.0,65531.0,0.96697108]
[1721403443966,0.01183,65532.0,65531.0,0.96597108]
[1721403443967,0.00083,65532.0,65531.0,0.96597108]
[1721403444183,0.00083,65532.0,65531.0,1.42555182]
[1721403444392,0.00083,65532.0,65531.0,1.66066751]
[1721403444596,0.00283,65532.0,65531.0,1.66066751]
[1721403445205,0.00083,65532.0,65531.0,1.66066751]
[1721403445408,0.00083,65532.0,65531.0,1.66366751]
[1721403445614,0.00083,65532.0,65531.0,1.35846851]
[1721403445943,0.00083,65532.0,65531.0,1.35746851]
[1721403446176,0.00183,65532.0,65531.0,1.35746851]
[1721403446378,0.00183,65532.0,65531.0,1.66763693]
[1721403446787,0.00183,65532.0,65531.0,1.67263693]
[1721403446986,0.00283,65532.0,65531.0,1.23232224]
[1721403447190,0.00283,65532.0,65531.0,0.2149435]
[1721403447448,0.00283,65532.0,65531.0,0.0236435]
[1721403447853,0.43090874,65532.0,65531.0,0.0236435]
[1721403448047,0.84087954,65532.0,65531.0,0.0236435]
[1721403448246,1.59805709,65532.0,65531.0,0.013]
[1721403448490,1.80573572,65532.0,65531.0,0.00571]
[1721403448699,1.80573572,65532.0,65520.0,0.01]
[1721403448700,0.152618,65523.0,65520.0,0.01]
[1721403448846,0.74575434,65523.0,65520.0,0.01]
[1721403449062,0.79143874,65523.0,65522.0,0.944893]
[1721403449245,0.65099074,65523.0,65522.0,0.95528732]
[1721403449425,0.3438721,65523.0,65522.0,0.95528732]
[1721403449623,0.73630047,65523.0,65522.0,0.95528732]
[1721403449824,0.1682541,65523.0,65522.0,1.00528732]
[1721403450089,0.16838174,65523.0,65522.0,1.00528732]
[1721403450291,0.014,65523.0,65522.0,1.06868732]
[1721403450627,0.028,65523.0,65522.0,1.06868732]
[1721403451035,0.014,65523.0,65522.0,1.06868732]
[1721403452060,0.014,65523.0,65522.0,1.00528732]
[1721403452266,0.16838174,65523.0,65522.0,0.95528732]
[1721403452489,0.91284851,65523.0,65522.0,0.95528732]
[1721403452695,0.84227493,65523.0,65522.0,0.95528732]
[1721403452901,0.77423051,65523.0,65522.0,0.95528732]
[1721403453100,0.84227493,65523.0,65522.0,0.95528732]
[1721403453295,0.77423051,65523.0,65522.0,0.95528732]
[1721403453575,0.74623051,65523.0,65522.0,0.95621132]
[1721403453783,0.71913051,65523.0,65522.0,0.95621132]
[1721403453912,0.71913051,65523.0,65522.0,0.95721132]
[1721403453913,0.71013051,65523.0,65522.0,0.95721132]
[1721403454110,0.69601737,65523.0,65522.0,0.95721132]
[1721403454509,0.04163563,65523.0,65522.0,1.07071132]
[1721403455006,0.014,65523.0,65522.0,1.52757132]
[1721403455563,0.014,65523.0,65522.0,1.22233132]
[1721403456152,0.01370136,65528.0,65522.0,1.22233132]
[1721403456352,0.00083,65532.0,65527.0,0.07717479]
[1721403456580,0.00083,65532.0,65530.0,0.05]
[1721403456581,0.15521174,65532.0,65530.0,0.05]
[1721403456781,0.00083,65532.0,65531.0,0.05]
[1721403456953,0.00083,65532.0,65531.0,0.21293508]
[1721403457358,0.00083,65532.0,65531.0,0.06033608]
[1721403457656,0.01483,65532.0,65531.0,0.51813408]
[1721403457979,0.16921174,65532.0,65531.0,0.01033608]
[1721403458191,0.18613291,65532.0,65531.0,0.01033608]
[1721403458344,0.18613291,65532.0,65528.0,0.05]
[1721403458542,0.18613291,65532.0,65531.0,0.01033608]
[1721403458763,0.18613291,65532.0,65531.0,0.05]
[1721403458961,0.18613291,65532.0,65531.0,0.01033608]
[1721403459389,0.19413291,65532.0,65527.0,0.07717479]
[1721403459597,0.02060321,65531.0,65528.0,0.052794]
[1721403459840,0.02060321,65531.0,65528.0,0.05]
[1721403460229,0.02060321,65531.0,65527.0,0.12717479]
[1721403460414,0.02060321,65531.0,65529.0,0.002794]
[1721403460854,0.02060321,65531.0,65528.0,0.05]
[1721403461056,0.01692117,65530.0,65528.0,0.05]
[1721403461211,0.01692117,65530.0,65527.0,0.07717479]
[1721403461416,0.01692117,65530.0,65528.0,0.05]
[1721403461812,0.01692117,65530.0,65527.0,0.07717479]
[1721403461813,0.01692117,65530.0,65529.0,0.05]
[1721403463004,0.00083,65532.0,65531.0,0.05]
[1721403463208,0.01083,65532.0,65531.0,0.05]
[1721403463409,0.01083,65532.0,65531.0,0.1104]
[1721403463540,0.01083,65532.0,65531.0,0.262999]
[1721403463745,0.00083,65532.0,65531.0,0.262999]
[1721403463952,0.00083,65532.0,65531.0,0.873397]
[1721403464166,0.00083,65532.0,65531.0,0.953497]
[1721403464571,0.00883,65532.0,65531.0,0.953497]
[1721403465039,0.00883,65532.0,65531.0,1.258696]
[1721403465651,0.00883,65532.0,65531.0,0.1104]
[1721403466290,0.00883,65532.0,65531.0,0.12074929]
[1721403466493,0.00883,65532.0,65531.0,0.12174929]
[1721403466741,0.01883,65532.0,65531.0,0.01134929]
[1721403466913,0.01883,65532.0,65531.0,0.001]
[1721403466914,0.17321174,65532.0,65531.0,0.001]
[1721403467353,0.17321174,65532.0,65531.0,0.051]
[1721403467769,0.01883,65532.0,65531.0,0.051]
[1721403467970,0.01883,65532.0,65531.0,0.954997]
[1721403468109,0.01883,65532.0,65531.0,0.192]
[1721403468521,0.01883,65532.0,65531.0,0.194794]
[1721403468728,0.01883,65532.0,65531.0,0.192]
[1721403469701,0.01083,65532.0,65531.0,0.344599]
[1721403470070,0.01083,65532.0,65531.0,0.343599]
[1721403470071,0.00683,65532.0,65531.0,0.343599]
[1721403470333,0.00083,65532.0,65531.0,0.648798]
[1721403470549,0.01083,65532.0,65531.0,0.649798]
[1721403470749,0.01883,65532.0,65531.0,0.344599]
[1721403471104,0.01883,65532.0,65531.0,0.051]
[1721403471306,0.00883,65532.0,65528.0,0.05]
[1721403471708,0.00883,65532.0,65520.0,0.162623]
[1721403471709,0.15438174,65531.0,65521.0,0.0619]
[1721403471923,0.03454498,65530.0,65523.0,0.002794]
[1721403472095,0.03454498,65530.0,65520.0,0.01]
[1721403472096,0.19796675,65525.0,65520.0,0.01]
[1721403472297,0.04535275,65523.0,65520.0,0.01]
[1721403472523,0.21342302,65523.0,65520.0,0.01]
[1721403472777,0.16807027,65523.0,65520.0,0.01]
[1721403472977,0.23009799,65523.0,65520.0,0.01]
[1721403473176,0.01368853,65523.0,65520.0,0.01]
[1721403473378,0.04535979,65524.0,65520.0,0.01]
[1721403473538,0.19974153,65524.0,65520.0,0.01]
[1721403473737,0.15438174,65524.0,65520.0,0.06]
[1721403473948,0.19976104,65524.0,65522.0,0.995817]
[1721403474371,0.01419819,65523.0,65522.0,0.995817]
[1721403474739,0.21376104,65524.0,65522.0,0.995817]
[1721403475115,0.16838174,65524.0,65523.0,0.12717479]
[1721403475434,0.15438174,65524.0,65523.0,0.12717479]
[1721403475630,0.15438174,65524.0,65522.0,0.945817]
[1721403475842,0.16860504,65523.0,65522.0,0.945817]
[1721403476038,0.21398434,65523.0,65522.0,0.945817]
[1721403476246,0.16860504,65523.0,65522.0,0.945817]
[1721403476470,0.16860504,65523.0,65522.0,0.946817]
[1721403476879,0.28742881,65523.0,65522.0,0.946817]
[1721403477076,0.49003575,65523.0,65522.0,0.946817]
[1721403477455,0.88600361,65523.0,65522.0,0.946817]
[1721403477903,0.59476761,65523.0,65522.0,0.946817]
[1721403478473,0.50403575,65523.0,65522.0,0.946817]
[1721403479222,0.35141775,65523.0,65522.0,0.945817]
[1721403479390,0.43345374,65523.0,65522.0,0.946817]
[1721403479587,0.29315374,65523.0,65522.0,0.946817]
[1721403479831,0.24166049,65523.0,65522.0,0.946817]
[1721403480233,0.19670278,65523.0,65522.0,0.946817]
[1721403480442,0.27093267,65523.0,65522.0,0.946817]
[1721403480645,0.19670278,65523.0,65522.0,0.946817]
[1721403481275,0.43342919,65523.0,65522.0,0.946817]
[1721403481589,0.46916977,65523.0,65522.0,0.946817]
[1721403481766,1.1262016,65523.0,65522.0,0.946817]
[1721403481968,0.91174609,65523.0,65522.0,0.946817]
[1721403482105,0.95284609,65523.0,65522.0,0.946817]
[1721403482307,0.92546435,65523.0,65522.0,0.946817]
[1721403482515,0.95146739,65523.0,65522.0,0.946817]
[1721403482934,0.64623139,65523.0,65522.0,0.946817]
[1721403483136,0.43869709,65523.0,65522.0,0.946817]
[1721403483340,0.34801339,65523.0,65522.0,0.946817]
[1721403483676,0.32413308,65523.0,65522.0,0.946817]
[1721403484128,0.19540569,65523.0,65522.0,0.946817]
[1721403485059,0.19624569,65523.0,65522.0,0.946817]
[1721403485623,0.19614175,65523.0,65522.0,0.946817]
[1721403485806,0.19614175,65523.0,65522.0,0.996817]
[1721403485807,0.02884,65523.0,65522.0,0.996817]